bitfinex/quotes_BTCUSD_20250705
["timestamp","ask_amount","ask_price","bid_price","bid_amount"]
[1751685391223,0.94019323,108320.0,108310.0,0.52836]
[1751685391682,0.38146495,108320.0,108310.0,0.52836]
[1751685392014,0.94019323,108320.0,108310.0,0.52836]
[1751685392439,0.9401931,108320.0,108310.0,0.52836]
[1751685393942,0.9401931,108320.0,108310.0,0.18836]
[1751685394115,0.92505163,108320.0,108310.0,0.18836]
[1751685394570,0.96195193,108320.0,108310.0,0.001]
[1751685395002,0.94943505,108320.0,108310.0,0.001]
[1751685395208,0.98962716,108320.0,108310.0,0.001]
[1751685395823,0.99828918,108320.0,108310.0,0.001]
[1751685396002,0.98962716,108320.0,108310.0,0.001]
[1751685396345,1.00478648,108320.0,108310.0,0.001]
[1751685396545,0.99828963,108320.0,108310.0,0.001]
[1751685397071,1.00478648,108320.0,108310.0,0.001]
[1751685404612,1.00477476,108320.0,108310.0,0.001]
[1751685413878,0.44604648,108320.0,108310.0,0.001]
[1751685414082,1.00477476,108320.0,108310.0,0.001]
[1751685421203,1.00477056,108320.0,108310.0,0.001]
[1751685422161,0.96787026,108320.0,108310.0,0.001]
[1751685423885,0.9363869,108320.0,108310.0,0.001]
[1751685431959,0.86377505,108320.0,108310.0,0.001]
[1751685432548,0.86377486,108320.0,108310.0,0.001]
[1751685436677,0.35125663,108320.0,108310.0,0.31742466]
[1751685436876,0.28661147,108320.0,108310.0,0.32665716]
[1751685437118,0.10197337,108320.0,108310.0,0.33588949]
[1751685437321,0.1297054,108320.0,108310.0,0.33588949]
[1751685437573,0.12970548,108320.0,108310.0,0.32665716]
[1751685437755,0.12970548,108320.0,108310.0,0.62448604]
[1751685437756,0.12047307,108320.0,108310.0,0.62448604]
[1751685437958,0.12047307,108320.0,108310.0,0.6337182]
[1751685437959,0.09272639,108320.0,108310.0,0.6337182]
[1751685438567,0.06499436,108320.0,108310.0,0.62448604]
[1751685438774,0.02439107,108320.0,108310.0,0.63371786]
[1751685438983,0.01846269,108320.0,108310.0,0.63371786]
[1751685439190,0.02769433,108320.0,108310.0,0.82099786]
[1751685439884,0.03692606,108320.0,108310.0,0.53240156]
[1751685440120,0.04559326,108320.0,108310.0,0.54163372]
[1751685440599,0.03636153,108320.0,108310.0,0.54163372]
[1751685441040,0.02769433,108320.0,108310.0,0.54163372]
[1751685442205,0.05542636,108320.0,108310.0,0.54163372]
[1751685442415,0.03636153,108320.0,108310.0,0.54163372]
[1751685442674,0.02769433,108320.0,108310.0,0.54163372]
[1751685442860,0.02769433,108320.0,108310.0,0.52316932]
[1751685443056,0.03692623,108320.0,108310.0,0.52316932]
[1751685443266,0.03692615,108320.0,108310.0,0.53240156]
[1751685443803,0.03692615,108320.0,108310.0,0.52316932]
[1751685444420,0.03692615,108320.0,108310.0,0.53240156]
[1751685445188,0.02769433,108320.0,108310.0,0.54163372]
[1751685448831,0.02769433,108320.0,108310.0,0.53240156]
[1751685449414,0.02769433,108320.0,108310.0,0.54163372]
[1751685450317,0.03692615,108320.0,108310.0,0.53240156]
[1751685450763,0.04615805,108320.0,108310.0,0.52316932]
[1751685451689,0.03692683,108320.0,108310.0,0.52316932]
[1751685451897,0.03692572,108320.0,108310.0,0.51393699]
[1751685452115,0.32552168,108320.0,108310.0,0.53240156]
[1751685452728,0.32552236,108320.0,108310.0,0.53240156]
[1751685452944,0.0276945,108320.0,108310.0,0.53240156]
[1751685453144,0.30705864,108320.0,108310.0,0.54163372]
[1751685453290,0.03692623,108320.0,108310.0,0.54163372]
[1751685453698,0.04046234,108330.0,108320.0,0.22576992]
[1751685453902,0.50018345,108330.0,108320.0,0.32643849]
[1751685454133,0.24295949,108330.0,108320.0,0.32643849]
[1751685454329,0.50941399,108330.0,108320.0,0.33567005]
[1751685454680,0.53155417,108330.0,108320.0,0.32643849]
[1751685454875,0.52232363,108330.0,108320.0,0.32643849]
[1751685455923,0.51309284,108330.0,108320.0,0.32643849]
[1751685456133,0.51309284,108330.0,108320.0,0.32743849]
[1751685456342,0.2337287,108330.0,108320.0,0.32743849]
[1751685456568,0.04542913,108330.0,108320.0,0.6160341]
[1751685456742,0.03678374,108330.0,108320.0,1.05670233]
[1751685457156,0.03878374,108330.0,108320.0,1.05670233]
[1751685457358,0.03678374,108330.0,108320.0,0.77733819]
[1751685457564,0.03678374,108330.0,108320.0,0.68590126]
[1751685459883,0.02755278,108330.0,108320.0,0.68590126]
[1751685460285,0.01832165,108330.0,108320.0,0.68590126]
[1751685460571,0.26154934,108340.0,108320.0,0.95603307]
[1751685460809,0.00923037,108330.0,108320.0,0.84829614]
[1751685461023,0.00923037,108330.0,108320.0,1.12689307]
[1751685461195,0.00923037,108330.0,108320.0,1.44019307]
[1751685462602,0.01846091,108330.0,108320.0,1.44019307]
[1751685463216,0.00923037,108330.0,108320.0,1.44219307]
[1751685463680,0.00923037,108330.0,108320.0,1.44119307]
[1751685464229,0.05832667,108340.0,108330.0,0.24341344]
[1751685464439,0.04542762,108340.0,108330.0,0.33485037]
[1751685464852,0.32479176,108340.0,108330.0,0.33485037]
[1751685465063,0.03619751,108340.0,108330.0,0.33485037]
[1751685465262,0.03678503,108340.0,108330.0,0.34408082]
[1751685465487,0.05465774,108340.0,108330.0,0.33485037]
[1751685465688,0.04542754,108340.0,108330.0,0.33485037]
[1751685465890,0.32497325,108340.0,108330.0,0.33485037]
[1751685466515,0.31574314,108340.0,108330.0,0.34408082]
[1751685466963,0.31574314,108340.0,108330.0,0.34508082]
[1751685467704,0.32491311,108340.0,108330.0,0.34508082]
[1751685468976,0.32491311,108340.0,108330.0,0.33585037]
[1751685469209,0.33414322,108340.0,108330.0,0.33585037]
[1751685470385,0.03690628,108340.0,108330.0,0.34508082]
[1751685470591,0.04554879,108340.0,108330.0,0.34508082]
[1751685471009,0.05477882,108340.0,108330.0,0.34508082]
[1751685471431,0.33414296,108340.0,108330.0,0.34508082]
[1751685472022,0.32491293,108340.0,108330.0,0.34508082]
[1751685472851,0.31568299,108340.0,108330.0,0.34508082]
[1751685473029,0.01785948,108340.0,108330.0,0.64248082]
[1751685473250,0.0185062,108340.0,108330.0,0.99690037]
[1751685474067,0.0185062,108340.0,108330.0,0.98248082]
[1751685476573,4.7e-05,108340.0,108330.0,0.98248082]
[1751685476735,0.00927651,108340.0,108330.0,0.98248082]
[1751685477137,0.0185062,108340.0,108330.0,0.98248082]
[1751685480036,0.02773597,108340.0,108330.0,0.98248082]
[1751685480627,0.03696583,108340.0,108330.0,0.98248082]
[1751685480844,0.02773597,108340.0,108330.0,0.98248082]
[1751685482062,0.0185062,108340.0,108330.0,0.98248082]
[1751685482993,0.03696617,108340.0,108330.0,0.98248082]
[1751685483194,0.31633023,108340.0,108330.0,0.95138082]
[1751685483979,0.3071002,108340.0,108330.0,0.95138082]
[1751685484163,0.3071002,108340.0,108330.0,0.96668082]
[1751685484773,0.3071002,108340.0,108330.0,0.66928082]
[1751685485196,0.30710011,108340.0,108330.0,0.66928082]
[1751685485815,0.31633005,108340.0,108330.0,0.66928082]
[1751685486066,0.30710011,108340.0,108330.0,0.66928082]
[1751685487082,0.00927651,108340.0,108330.0,0.66928082]
[1751685487256,0.00927643,108340.0,108330.0,0.68478082]
[1751685487442,0.01850603,108340.0,108330.0,0.96414496]
[1751685487643,0.02773572,108340.0,108330.0,0.68478082]
[1751685488106,0.30709986,108340.0,108330.0,0.68478082]
[1751685488861,0.02773572,108340.0,108330.0,0.68478082]
[1751685489723,0.02773572,108340.0,108330.0,0.68678082]
[1751685489901,0.03696566,108340.0,108330.0,0.68678082]
[1751685490367,0.03696558,108340.0,108330.0,0.68678082]
[1751685490775,0.03696558,108340.0,108330.0,0.98418082]
[1751685490982,0.02773572,108340.0,108330.0,0.98418082]
[1751685491594,0.03696558,108340.0,108330.0,0.98418082]
[1751685491773,0.02773572,108340.0,108330.0,0.98418082]
[1751685492932,0.31632972,108340.0,108330.0,0.98418082]
[1751685494094,0.31632972,108340.0,108330.0,1.17126082]
[1751685495718,0.31632972,108340.0,108330.0,1.15576082]
[1751685496097,0.02773572,108340.0,108330.0,1.15576082]
[1751685496308,0.31632972,108340.0,108330.0,1.15576082]
[1751685496945,0.30709986,108340.0,108330.0,1.15576082]
[1751685497585,0.31632972,108340.0,108330.0,1.15576082]
[1751685498523,0.32555975,108340.0,108330.0,1.15576082]
[1751685499140,0.32555975,108340.0,108330.0,1.14046082]
[1751685500304,0.33421761,108340.0,108330.0,1.14046082]
[1751685500502,0.32498758,108340.0,108330.0,1.14046082]
[1751685501484,0.32498749,108340.0,108330.0,1.14046082]
[1751685502893,0.33421743,108340.0,108330.0,1.14046082]
[1751685503589,0.33421735,108340.0,108330.0,1.14046082]
[1751685504136,0.32498749,108340.0,108330.0,1.14046082]
[1751685504484,0.04562335,108340.0,108330.0,1.14046082]
[1751685504709,0.04562335,108340.0,108330.0,1.23189775]
[1751685504710,0.02716389,108340.0,108330.0,1.23189775]
[1751685504913,0.29787017,108340.0,108330.0,1.26349775]
[1751685505119,0.02716389,108340.0,108330.0,1.26349775]
[1751685505315,0.28864057,108340.0,108330.0,1.17206082]
[1751685505522,0.02716389,108340.0,108330.0,1.17206082]
[1751685505721,0.01850603,108340.0,108330.0,1.17206082]
[1751685507619,0.01850603,108340.0,108330.0,1.15586082]
[1751685507852,0.30709994,108340.0,108330.0,1.15586082]
[1751685508110,0.3157578,108340.0,108330.0,1.15586082]
[1751685508529,0.3157578,108340.0,108330.0,1.14046082]
[1751685510749,0.31576283,108340.0,108330.0,1.14046082]
[1751685511260,0.30653297,108340.0,108330.0,1.14046082]
[1751685511514,0.31576266,108340.0,108330.0,1.14046082]
[1751685512452,0.03639843,108340.0,108330.0,1.14046082]
[1751685512605,0.31632945,108340.0,108330.0,1.14046082]
[1751685512827,0.31576257,108340.0,108330.0,1.14046082]
[1751685513027,0.32499234,108340.0,108330.0,1.14046082]
[1751685514066,0.33422228,108340.0,108330.0,1.14046082]
[1751685515274,0.32499234,108340.0,108330.0,1.14046082]
[1751685516333,0.32555948,108340.0,108330.0,1.14046082]
[1751685516545,0.33422231,108340.0,108330.0,1.14046082]
[1751685516750,0.33422222,108340.0,108330.0,1.14046082]
[1751685517734,0.33422226,108340.0,108330.0,1.14046082]
[1751685518122,0.32555939,108340.0,108330.0,1.14046082]
[1751685518332,0.33422226,108340.0,108330.0,1.14046082]
[1751685518799,0.33422218,108340.0,108330.0,1.14046082]
[1751685520031,0.33422226,108340.0,108330.0,1.14046082]
[1751685520405,0.05485812,108340.0,108330.0,1.14046082]
[1751685520619,0.33422226,108340.0,108330.0,1.14046082]
[1751685521184,0.33422286,108340.0,108330.0,1.14046082]
[1751685521386,0.32499283,108340.0,108330.0,1.14046082]
[1751685522124,0.33422277,108340.0,108330.0,1.14046082]
[1751685522328,0.32499283,108340.0,108330.0,1.14046082]
[1751685522902,0.32499288,108340.0,108330.0,1.14046082]
[1751685523137,0.33422291,108340.0,108330.0,1.14046082]
[1751685523563,0.32499288,108340.0,108330.0,1.14046082]
[1751685525433,0.31576311,108340.0,108330.0,1.14046082]
[1751685526118,0.02716911,108340.0,108330.0,1.14046082]
[1751685526320,0.31632988,108340.0,108330.0,1.14046082]
[1751685526521,0.32499288,108340.0,108330.0,1.14046082]
[1751685528618,0.31576302,108340.0,108330.0,1.14046082]
[1751685528984,0.32499296,108340.0,108330.0,1.14046082]
[1751685529462,0.31576302,108340.0,108330.0,1.14046082]
[1751685529825,0.32499296,108340.0,108330.0,1.14046082]
[1751685530366,0.31576302,108340.0,108330.0,1.14046082]
[1751685530917,0.32499288,108340.0,108330.0,1.14046082]
[1751685533858,0.04562874,108340.0,108330.0,1.14046082]
[1751685534011,0.32499288,108340.0,108330.0,1.14046082]
[1751685535257,0.31576302,108340.0,108330.0,1.14046082]
[1751685535674,0.32499296,108340.0,108330.0,1.14046082]
[1751685538960,0.33422299,108340.0,108330.0,1.14046082]
[1751685539081,0.32499296,108340.0,108330.0,1.14046082]
[1751685539286,0.32499288,108340.0,108330.0,1.14046082]
[1751685541098,0.33422282,108340.0,108330.0,1.14046082]
[1751685542068,0.32499288,108340.0,108330.0,1.14046082]
[1751685544409,0.33422291,108340.0,108330.0,1.14046082]
[1751685546253,0.33422291,108340.0,108330.0,1.11276904]
[1751685546436,0.33422291,108340.0,108330.0,1.14046116]
[1751685546618,0.04562874,108340.0,108330.0,1.14046116]
[1751685546833,0.33422282,108340.0,108330.0,1.14046116]
[1751685549590,0.33422334,108340.0,108330.0,1.14046116]
[1751685549736,0.0548592,108340.0,108330.0,1.14046116]
[1751685549923,0.33422334,108340.0,108330.0,1.14046116]
[1751685551316,0.04562917,108340.0,108330.0,1.14046116]
[1751685551461,0.32499331,108340.0,108330.0,1.14046116]
[1751685553040,0.33422334,108340.0,108330.0,1.14046116]
[1751685553445,0.32499331,108340.0,108330.0,1.14046116]
[1751685555818,0.32383639,108340.0,108330.0,1.14046116]
[1751685556296,0.32383639,108340.0,108330.0,1.1776748]
[1751685559264,0.31460645,108340.0,108330.0,1.1776748]
[1751685559933,0.31460645,108340.0,108330.0,1.14046116]
[1751685560289,0.30537659,108340.0,108330.0,1.14046116]
[1751685560682,0.31460653,108340.0,108330.0,1.14046116]
[1751685560884,0.30537659,108340.0,108330.0,1.14046116]
[1751685561235,0.31460653,108340.0,108330.0,1.14046116]
[1751685562403,0.30537659,108340.0,108330.0,1.14046116]
[1751685562602,0.31460653,108340.0,108330.0,1.14046116]
[1751685567367,0.31460653,108340.0,108330.0,1.23189809]
[1751685567766,0.31460653,108340.0,108330.0,1.14046116]
[1751685570742,0.32383656,108340.0,108330.0,1.14046116]
[1751685571412,0.33306763,108340.0,108330.0,1.14046116]
[1751685571624,0.32383752,108340.0,108330.0,1.14046116]
[1751685572831,0.04447338,108340.0,108330.0,1.14046116]
[1751685573040,0.31460749,108340.0,108330.0,1.14046116]
[1751685576513,0.32383752,108340.0,108330.0,1.14046116]
[1751685577540,0.35543752,108340.0,108330.0,1.14046116]
[1751685578135,0.36466763,108340.0,108330.0,1.14046116]
[1751685578348,0.36466764,108340.0,108330.0,1.14046116]
[1751685580441,0.34826764,108340.0,108330.0,1.14026116]
[1751685581497,0.33306764,108340.0,108330.0,1.14026116]
[1751685583987,0.32383753,108340.0,108330.0,1.14026116]
[1751685585220,0.3146075,108340.0,108330.0,1.14026116]
[1751685589079,0.02601342,108340.0,108330.0,1.23169809]
[1751685589279,0.01734945,108340.0,108330.0,1.23169809]
[1751685589485,0.02657939,108340.0,108330.0,1.23169809]
[1751685589668,0.01734945,108340.0,108330.0,1.23169809]
[1751685589823,0.01734945,108340.0,108330.0,1.14026116]
[1751685591551,0.02657931,108340.0,108330.0,1.14026116]
[1751685592175,0.30594345,108340.0,108330.0,1.14026116]
[1751685592329,0.31460742,108340.0,108330.0,1.14026116]
[1751685593474,0.30537756,108340.0,108330.0,1.14026116]
[1751685593898,0.02601342,108340.0,108330.0,1.14026116]
[1751685594100,0.29671359,108340.0,108330.0,1.14026116]
[1751685594300,0.30537756,108340.0,108330.0,1.14026116]
[1751685594667,0.02601342,108340.0,108330.0,1.14026116]
[1751685594869,0.01734945,108340.0,108330.0,1.14026116]
[1751685596047,0.02657939,108340.0,108330.0,1.14026116]
[1751685596430,0.30594353,108340.0,108330.0,1.14026116]
[1751685596606,0.3146075,108340.0,108330.0,1.14026116]
[1751685596809,0.30537756,108340.0,108330.0,1.14026116]
[1751685598033,0.01678365,108340.0,108330.0,1.14026116]
[1751685598241,0.29671359,108340.0,108330.0,1.14026116]
[1751685598443,0.30537756,108340.0,108330.0,1.14026116]
[1751685599405,0.3146075,108340.0,108330.0,1.14026116]
[1751685599614,0.30537756,108340.0,108330.0,1.14026116]
[1751685600742,0.3146075,108340.0,108330.0,1.14026116]
[1751685601274,0.30537756,108340.0,108330.0,1.14026116]
[1751685601869,0.3146075,108340.0,108330.0,1.14026116]
[1751685603498,0.32383753,108340.0,108330.0,1.14026116]
[1751685603698,0.3146075,108340.0,108330.0,1.14026116]
[1751685604201,0.02601342,108340.0,108330.0,1.14026116]
[1751685604402,0.30594353,108340.0,108330.0,1.14026116]
[1751685604558,0.3146075,108340.0,108330.0,1.14026116]
[1751685606194,0.32383753,108340.0,108330.0,1.14026116]
[1751685607147,0.3146075,108340.0,108330.0,1.14026116]
[1751685609674,0.03524336,108340.0,108330.0,1.14026116]
[1751685609887,0.3146075,108340.0,108330.0,1.14026116]
[1751685611955,0.32383753,108340.0,108330.0,1.14026116]
[1751685613080,0.3146075,108340.0,108330.0,1.14026116]
[1751685614081,0.3146075,108340.0,108330.0,1.23169809]
[1751685614287,0.02601342,108340.0,108330.0,1.14026116]
[1751685614420,0.02657931,108340.0,108330.0,1.14026116]
[1751685615181,0.01734945,108340.0,108330.0,1.14026116]
[1751685617146,0.02657939,108340.0,108330.0,1.14026116]
[1751685617347,0.01734945,108340.0,108330.0,1.14026116]
[1751685618696,0.02657939,108340.0,108330.0,1.14026116]
[1751685619543,0.01734945,108340.0,108330.0,1.14026116]
[1751685619766,0.02657931,108340.0,108330.0,1.14026116]
[1751685619964,0.01734945,108340.0,108330.0,1.14026116]
[1751685621998,0.02657931,108340.0,108330.0,1.14026116]
[1751685622996,0.03580925,108340.0,108330.0,1.14026116]
[1751685623691,0.04447322,108340.0,108330.0,1.14026116]
[1751685624359,0.03524328,108340.0,108330.0,1.14026116]
[1751685624541,0.02657931,108340.0,108330.0,1.14026116]
[1751685631300,0.03580934,108340.0,108330.0,1.14026116]
[1751685631524,0.02657931,108340.0,108330.0,1.14026116]
[1751685631770,0.03580934,108340.0,108330.0,1.14026116]
[1751685632136,0.02657931,108340.0,108330.0,1.14026116]
[1751685632756,0.03580934,108340.0,108330.0,1.14026116]
[1751685633043,0.03580925,108340.0,108330.0,1.14026116]
[1751685633269,0.04447322,108340.0,108330.0,1.14026116]
[1751685633470,0.03524328,108340.0,108330.0,1.14026116]
[1751685633839,0.02657931,108340.0,108330.0,1.14026116]
[1751685634022,0.03580925,108340.0,108330.0,1.14026116]
[1751685634939,0.02657931,108340.0,108330.0,1.14026116]
[1751685635339,0.00811968,108340.0,108330.0,1.14026116]
[1751685635578,0.01734945,108340.0,108330.0,1.14026116]
[1751685635980,0.02657931,108340.0,108330.0,1.14026116]
[1751685641111,0.01734945,108340.0,108330.0,1.14026116]
[1751685643788,0.01734945,108340.0,108330.0,1.4196253]
[1751685646164,0.01734945,108340.0,108330.0,1.14026116]
[1751685646371,0.01734945,108340.0,108330.0,1.4196253]
[1751685649244,0.00811968,108340.0,108330.0,1.4196253]
[1751685649682,0.01734945,108340.0,108330.0,1.14026116]
[1751685649855,0.00811968,108340.0,108330.0,1.14026116]
[1751685650878,0.01734945,108340.0,108330.0,1.14026116]
[1751685651350,0.00811968,108340.0,108330.0,1.14026116]
[1751685652062,0.59073375,108350.0,108340.0,0.20306399]
[1751685652273,0.59073375,108350.0,108340.0,0.48118109]
[1751685652478,0.5907337,108350.0,108340.0,0.49041103]
[1751685653383,0.5907337,108350.0,108340.0,0.49141103]
[1751685654088,0.5907337,108350.0,108340.0,0.49041103]
[1751685654297,0.59073362,108350.0,108340.0,0.49041103]
[1751685654530,0.59073362,108350.0,108340.0,0.49241103]
[1751685654926,0.59073268,108350.0,108340.0,0.49341103]
[1751685655146,0.59073268,108350.0,108340.0,0.49341086]
[1751685655345,0.59073268,108350.0,108340.0,0.484181]
[1751685656067,0.58150359,108350.0,108340.0,0.47495106]
[1751685656207,0.58150359,108350.0,108340.0,0.48418109]
[1751685658182,0.57227425,108350.0,108340.0,0.47495106]
[1751685658560,0.57227425,108350.0,108340.0,0.48418109]
[1751685658767,0.57227425,108350.0,108340.0,0.47495106]
[1751685659977,0.57227408,108350.0,108340.0,0.47495106]
[1751685660197,0.29290994,108350.0,108340.0,0.47495106]
[1751685660375,0.57227408,108350.0,108340.0,0.48418109]
[1751685660602,0.29290936,108350.0,108340.0,0.48418109]
[1751685660872,0.5722735,108350.0,108340.0,0.48418109]
[1751685661083,0.57227349,108350.0,108340.0,0.48418109]
[1751685661696,0.57227349,108350.0,108340.0,0.49341103]
[1751685664812,0.57227349,108350.0,108340.0,0.48418109]
[1751685665156,0.38768531,108350.0,108340.0,0.48418109]
[1751685665372,0.55650878,108350.0,108340.0,0.49341095]
[1751685665896,0.55650878,108350.0,108340.0,0.50264072]
[1751685666281,0.55650878,108350.0,108340.0,0.49341095]
[1751685667107,0.55650878,108350.0,108340.0,0.48418109]
[1751685667250,0.55650878,108350.0,108340.0,0.49341103]
[1751685668423,0.55650878,108350.0,108340.0,0.50264089]
[1751685669260,0.55650878,108350.0,108340.0,0.49341103]
[1751685669636,0.55650878,108350.0,108340.0,0.50264089]
[1751685669863,0.55650878,108350.0,108340.0,0.49341103]
[1751685670287,0.55650878,108350.0,108340.0,0.50264089]
[1751685673678,0.0607569,108350.0,108340.0,0.51187049]
[1751685673877,0.06998582,108350.0,108340.0,0.51187049]
[1751685674177,0.03284285,108350.0,108340.0,0.82313463]
[1751685674376,0.01066377,108350.0,108340.0,1.12053463]
[1751685674623,0.002,108350.0,108340.0,1.39989877]
[1751685674988,0.002,108350.0,108340.0,1.4913357]
[1751685675595,0.002,108350.0,108340.0,1.4883357]
[1751685675993,0.002,108350.0,108340.0,1.4943357]
[1751685676778,0.002,108350.0,108340.0,1.40289877]
[1751685682188,0.002,108350.0,108340.0,1.12353463]
[1751685682390,0.002,108350.0,108340.0,1.40289877]
[1751685683656,0.002,108350.0,108340.0,1.12003962]
[1751685684581,0.002,108350.0,108340.0,0.37359049]
[1751685684822,0.002,108350.0,108340.0,0.56015049]
[1751685685036,0.29059272,108350.0,108340.0,0.56015049]
[1751685685175,0.33132147,108350.0,108340.0,0.56015049]
[1751685685377,0.29059272,108350.0,108340.0,0.56015049]
[1751685685582,0.02045733,108350.0,108340.0,0.56015049]
[1751685686272,0.01122858,108350.0,108340.0,0.56015049]
[1751685686443,0.02045724,108350.0,108340.0,0.56015049]
[1751685686656,0.002,108350.0,108340.0,0.56015049]
[1751685689052,0.002,108350.0,108340.0,0.85755049]
[1751685689907,0.002,108350.0,108340.0,1.13691463]
[1751685690124,0.002,108350.0,108340.0,0.87275049]
[1751685690310,0.002,108350.0,108340.0,1.15211463]
[1751685690508,0.01122866,108350.0,108340.0,1.15211463]
[1751685691459,0.002,108350.0,108340.0,1.15211463]
[1751685692207,0.01122858,108350.0,108340.0,1.15211463]
[1751685695919,0.01122858,108350.0,108340.0,1.13691463]
[1751685696371,0.002,108350.0,108340.0,1.13691463]
[1751685696914,0.002,108350.0,108340.0,0.85755049]
[1751685698052,0.01122866,108350.0,108340.0,0.85755049]
[1751685698181,0.002,108350.0,108340.0,0.85755049]
[1751685698583,0.01122866,108350.0,108340.0,0.85755049]
[1751685698806,0.002,108350.0,108340.0,1.13691463]
[1751685700272,0.01122866,108350.0,108340.0,1.13691463]
[1751685700611,0.002,108350.0,108340.0,1.13691463]
[1751685702079,0.002,108350.0,108340.0,1.13683463]
[1751685702313,0.32179272,108350.0,108340.0,0.85747049]
[1751685702843,0.30609272,108350.0,108340.0,0.85747049]
[1751685703055,0.29059272,108350.0,108340.0,0.85747049]
[1751685703507,0.01122858,108350.0,108340.0,0.85747049]
[1751685706704,0.02045724,108350.0,108340.0,0.85747049]
[1751685707817,0.07788547,108350.0,108340.0,0.85747049]
[1751685708147,0.02045724,108350.0,108340.0,0.85747049]
[1751685710938,0.01122858,108350.0,108340.0,0.85747049]
[1751685711497,0.02045733,108350.0,108340.0,0.85747049]
[1751685712585,0.02045724,108350.0,108340.0,0.85747049]
[1751685713688,0.02968599,108350.0,108340.0,0.85747049]
[1751685714012,0.02045724,108350.0,108340.0,0.85747049]
[1751685714879,0.11639142,108350.0,108340.0,0.85747049]
[1751685715073,0.05065724,108350.0,108340.0,0.85747049]
[1751685721078,0.05988599,108350.0,108340.0,0.85747049]
[1751685722266,0.05065724,108350.0,108340.0,0.85747049]
[1751685723021,0.02045724,108350.0,108340.0,0.85747049]
[1751685724830,0.02968607,108350.0,108340.0,0.85747049]
[1751685725285,0.02968599,108350.0,108340.0,0.85747049]
[1751685728078,0.02045724,108350.0,108340.0,0.85747049]
[1751685728468,0.02045724,108350.0,108340.0,1.13683463]
[1751685728890,0.02968607,108350.0,108340.0,1.13683463]
[1751685729112,0.02045724,108350.0,108340.0,1.13683463]
[1751685729327,0.02968599,108350.0,108340.0,1.13683463]
[1751685729523,0.02045724,108350.0,108340.0,1.13683463]
[1751685729669,0.01122858,108350.0,108340.0,1.13683463]
[1751685730775,0.002,108350.0,108340.0,1.5076357]
[1751685730981,0.002,108350.0,108340.0,1.44769877]
[1751685733657,0.002,108350.0,108340.0,1.16833463]
[1751685746453,0.002,108350.0,108340.0,1.15243463]
[1751685748666,0.002,108350.0,108340.0,1.15143463]
[1751685749717,0.002,108350.0,108340.0,1.15043463]
[1751685755175,0.002,108350.0,108340.0,0.87107049]
[1751685755343,0.002,108350.0,108340.0,1.15043463]
[1751685756200,0.002,108350.0,108340.0,0.87107049]
[1751685756339,0.002,108350.0,108340.0,1.15043463]
[1751685757387,0.002,108350.0,108340.0,1.13483463]
[1751685763842,0.00144741,108350.0,108340.0,1.13483463]
[1751685764956,0.00144741,108350.0,108340.0,0.85547049]
[1751685765277,0.00144741,108350.0,108340.0,1.13483463]
[1751685768872,0.00144741,108350.0,108340.0,1.14937548]
[1751685769065,0.00144741,108350.0,108340.0,1.55157655]
[1751685770908,0.00144741,108350.0,108340.0,1.89157655]
[1751685771753,0.00144741,108350.0,108340.0,1.88857655]
[1751685772202,0.00144741,108350.0,108340.0,1.89657655]
[1751685772395,0.00144741,108350.0,108340.0,1.33784827]
[1751685772555,0.00144741,108350.0,108340.0,1.89657655]
[1751685773335,0.00144741,108350.0,108340.0,1.89357655]
[1751685773538,0.00144741,108350.0,108340.0,1.89857655]
[1751685778804,0.00144741,108350.0,108340.0,1.55857655]
[1751685779653,0.00144741,108350.0,108340.0,1.89857655]
[1751685790959,0.00144741,108350.0,108340.0,1.12192827]
[1751685791176,0.03354741,108350.0,108340.0,1.49609548]
[1751685791386,0.03354741,108350.0,108340.0,1.21673134]
[1751685791596,0.03354741,108350.0,108340.0,1.20219049]
[1751685791804,0.03354741,108350.0,108340.0,0.97059049]
[1751685792015,0.32214013,108350.0,108340.0,0.97059049]
[1751685792252,0.04277599,108350.0,108340.0,1.20215049]
[1751685792877,0.03354741,108350.0,108340.0,1.19715049]
[1751685793292,0.03354741,108350.0,108340.0,1.20015049]
[1751685793500,0.03354741,108350.0,108340.0,1.19215049]
[1751685793709,0.03354741,108350.0,108340.0,1.19515049]
[1751685794742,0.03354741,108350.0,108340.0,1.47451463]
[1751685798732,0.03354741,108350.0,108340.0,1.28823463]
[1751685798935,0.03354741,108350.0,108340.0,1.47455463]
[1751685800476,0.03354741,108350.0,108340.0,1.47451463]
[1751685805716,0.03354741,108350.0,108340.0,1.24295463]
[1751685805934,0.03354741,108350.0,108340.0,1.47451463]
[1751685806199,0.31291155,108350.0,108340.0,1.19515049]
[1751685806399,0.03354741,108350.0,108340.0,1.19515049]
[1751685814351,0.0428257,108350.0,108340.0,1.19515049]
[1751685815180,0.03354741,108350.0,108340.0,1.19515049]
[1751685815388,0.00144741,108350.0,108340.0,1.56595156]
[1751685816240,0.00144741,108350.0,108340.0,1.85985655]
[1751685816428,0.00144741,108350.0,108340.0,1.89085655]
[1751685824506,0.00144741,108350.0,108340.0,1.87565655]
[1751685825352,0.00144741,108350.0,108340.0,1.89075655]
[1751685829647,0.00144741,108350.0,108340.0,1.79931962]
[1751685830046,0.00144741,108350.0,108340.0,1.78421962]
[1751685830853,0.00144741,108350.0,108340.0,1.80051962]
[1751685835547,0.00144741,108350.0,108340.0,2.01051962]
[1751685861400,0.00144741,108350.0,108340.0,1.99421962]
[1751685861618,0.00144741,108350.0,108340.0,1.41969134]
[1751685861834,0.03354741,108350.0,108340.0,1.97841962]
[1751685862051,0.00144741,108350.0,108340.0,1.97841962]
[1751685871619,0.00144741,108350.0,108340.0,1.41969134]
[1751685871824,0.00144741,108350.0,108340.0,1.97841962]
[1751685877632,0.00144741,108350.0,108340.0,1.23341134]
[1751685877858,0.00144741,108350.0,108340.0,1.69893548]
[1751685877859,0.03414741,108350.0,108340.0,1.69893548]
[1751685878290,0.03414741,108350.0,108340.0,1.46749548]
[1751685878505,0.03414741,108350.0,108340.0,1.69885548]
[1751685878719,0.03414741,108350.0,108340.0,1.17359049]
[1751685878984,0.03414741,108350.0,108340.0,1.40495049]
[1751685879815,0.03414741,108350.0,108340.0,1.68431463]
[1751685882429,0.03414741,108350.0,108340.0,1.40495049]
[1751685882642,0.03414741,108350.0,108340.0,1.68431463]
[1751685890896,0.03414741,108350.0,108340.0,1.45295463]
[1751685891097,0.03414741,108350.0,108340.0,1.68435463]
[1751685892533,0.03414741,108350.0,108340.0,1.40499049]
[1751685892751,0.03414741,108350.0,108340.0,1.68435463]
[1751685899354,0.03414741,108350.0,108340.0,1.96371877]
[1751685906361,0.03414741,108350.0,108340.0,1.68431463]
[1751685922253,0.03414741,108350.0,108340.0,1.40495049]
[1751685922386,0.03414741,108350.0,108340.0,1.68431463]
[1751685930286,0.03414741,108350.0,108340.0,1.40495049]
[1751685930483,0.03414741,108350.0,108340.0,1.68431463]
[1751685931293,0.01804741,108350.0,108340.0,1.68431463]
[1751685931646,0.00144741,108350.0,108340.0,1.68431463]
[1751685936363,0.00144741,108350.0,108340.0,1.21883049]
[1751685936568,0.03314741,108350.0,108340.0,1.68427463]
[1751685938354,0.00144741,108350.0,108340.0,1.68427463]